bitfinex/quotes_SOLUSD_20251204
["timestamp","ask_amount","ask_price","bid_price","bid_amount"]
[1764814220425,0.1,144.6,144.59,7.62610761]
[1764814221314,0.1,144.6,144.59,0.71]
[1764814223603,0.1,144.6,144.57,7.62687444]
[1764814223804,0.1,144.6,144.58,7.62657617]
[1764814225428,0.1,144.6,144.59,0.71]
[1764814226616,0.1,144.6,144.59,8.35]
[1764814227301,0.1,144.6,144.59,15.26610761]
[1764814228523,0.1,144.6,144.59,26.64882887]
[1764814229123,0.1,144.6,144.59,42.95769287]
[1764814230829,0.2,144.63,144.62,16.308864]
[1764814231036,0.2,144.63,144.62,7.64]
[1764814231234,0.2,144.63,144.6,27.23164034]
[1764814231414,0.2,144.63,144.61,0.71]
[1764814232332,0.2,144.63,144.61,3.28277634]
[1764814232537,0.2,144.63,144.61,0.71]
[1764814233223,0.2,144.63,144.62,6.91467293]
[1764814233834,0.2,144.63,144.62,7.62467293]
[1764814234330,0.2,144.63,144.62,26.64739419]
[1764814238534,0.2,144.63,144.62,42.95625819]
[1764814239144,0.2,144.63,144.62,89.14739419]
[1764814239321,0.2,144.64,144.63,25.11880892]
[1764814239529,0.2,144.64,144.63,26.45583518]
[1764814242336,0.2,144.64,144.63,27.89837354]
[1764814245119,0.2,144.64,144.63,23.88305884]
[1764814246745,0.2,144.64,144.63,32.69300376]
[1764814246949,0.2,144.64,144.63,36.70831846]
[1764814247442,1e-08,144.64,144.63,36.70831846]
[1764814251349,1e-08,144.64,144.63,45.50324355]
[1764814251922,0.2,144.67,144.66,16.308864]
[1764814252140,0.2,144.67,144.66,36.77412362]
[1764814252348,0.2,144.67,144.66,37.43412362]
[1764814252739,1e-08,144.67,144.66,37.43412362]
[1764814252950,1e-08,144.67,144.66,38.12539971]
[1764814253833,1e-08,144.67,144.66,45.03816066]
[1764814254027,0.1,144.7,144.69,25.11880892]
[1764814254234,0.2,144.71,144.7,8.80994492]
[1764814254438,0.2,144.71,144.7,13.48525962]
[1764814255646,0.2,144.71,144.7,9.46994492]
[1764814255835,0.2,144.71,144.7,16.38079495]
[1764814256043,0.2,144.71,144.7,20.39610965]
[1764814256450,0.1,144.72,144.7,20.39610965]
[1764814256636,1e-08,144.72,144.71,21.12525962]
[1764814256837,1e-08,144.73,144.72,25.11880892]
[1764814257040,1e-08,144.73,144.72,29.79412362]
[1764814257251,0.1,144.77,144.72,29.79412362]
[1764814257454,0.1,144.77,144.76,20.3241787]
[1764814257659,0.1,144.77,144.76,27.9641787]
[1764814257833,0.1,144.77,144.76,35.53216433]
[1764814258028,0.1,144.77,144.76,34.87216433]
[1764814258256,0.1,144.77,144.76,43.68210925]
[1764814259260,0.1,144.77,144.76,44.34210925]
[1764814260462,0.1,144.77,144.76,48.35742395]
[1764814261036,0.78,144.77,144.76,6.90798563]
[1764814261950,0.1,144.77,144.76,6.90798563]
[1764814263163,0.78,144.77,144.75,6.90834635]
[1764814263333,0.78,144.77,144.74,11.6553147]
[1764814263734,0.78,144.77,144.74,7.64]
[1764814264858,0.78,144.77,144.75,6.90843879]
[1764814266060,0.1,144.77,144.76,4.0153147]
[1764814266237,0.1,144.77,144.76,11.6553147]
[1764814266552,0.1,144.77,144.76,12.3153147]
[1764814267048,0.1,144.77,144.76,11.6553147]
[1764814267358,0.1,144.77,144.76,18.56330033]
[1764814268235,0.78,144.77,144.76,14.54798563]
[1764814268867,0.78,144.77,144.75,6.90838234]
[1764814269339,0.78,144.77,144.75,10.92369704]
[1764814269767,0.1,144.77,144.75,11.58369704]
[1764814273274,0.1,144.77,144.75,7.56838234]
[1764814273475,0.1,144.77,144.75,11.58369704]
[1764814275269,0.81,144.77,144.75,6.90838234]
[1764814276763,0.81,144.77,144.75,10.92369704]
[1764814276973,0.1,144.77,144.76,11.6553147]
[1764814277846,0.1,144.77,144.76,19.27330033]
[1764814278170,0.1,144.77,144.76,28.08324525]
[1764814278969,0.1,144.77,144.76,24.06793055]
[1764814279155,0.1,144.77,144.76,28.08324525]
[1764814279560,0.1,144.77,144.76,6.90798563]
[1764814279790,0.1,144.77,144.76,18.56330033]
[1764814280247,0.1,144.77,144.76,19.27330033]
[1764814281459,0.1,144.77,144.76,15.25798563]
[1764814282079,0.1,144.77,144.76,19.27330033]
[1764814282583,0.1,144.77,144.76,15.25798563]
[1764814282751,0.1,144.77,144.76,19.27330033]
[1764814282958,0.1,144.77,144.76,28.08324525]
[1764814283378,0.1,144.77,144.76,44.39210925]
[1764814287179,0.1,144.77,144.76,110.90742395]
[1764814287578,0.1,144.77,144.76,94.59855995]
[1764814288392,0.81,144.77,144.73,6.90932474]
[1764814288699,4.8253147,144.77,144.72,4.0153147]
[1764814288988,0.81,144.77,144.75,6.90830199]
[1764814289158,0.81,144.77,144.74,11.6553147]
[1764814289159,0.71,144.76,144.74,11.6553147]
[1764814289364,0.71,144.76,144.74,18.56413723]
[1764814289779,0.71,144.76,144.74,14.54882253]
[1764814289981,0.71,144.76,144.74,18.56413723]
[1764814290394,0.71,144.76,144.75,6.90846286]
[1764814291188,4.7253147,144.76,144.7,7.64]
[1764814291386,4.0153147,144.75,144.7,7.64]
[1764814291683,4.7253147,144.75,144.7,7.64]
[1764814291981,0.71,144.74,144.7,7.64]
[1764814292492,0.1,144.77,144.73,4.0153147]
[1764814292712,0.1,144.77,144.76,29.13412362]
[1764814292988,0.1,144.77,144.76,16.308864]
[1764814293161,0.1,144.77,144.76,27.9641787]
[1764814293883,0.1,144.77,144.73,9.51994492]
[1764814293884,0.81,144.77,144.73,9.51994492]
[1764814294082,0.81,144.77,144.74,11.6553147]
[1764814294588,0.81,144.77,144.74,18.5641034]
[1764814295564,0.81,144.77,144.75,4.0153147]
[1764814295783,0.1,144.77,144.76,4.0153147]
[1764814296379,0.1,144.77,144.76,21.0341787]
[1764814296571,0.1,144.77,144.76,27.23216433]
[1764814298391,0.1,144.77,144.76,27.94216433]
[1764814300487,0.1,144.77,144.76,32.73679455]
[1764814300688,0.1,144.77,144.76,36.75210925]
[1764814302370,0.1,144.77,144.76,35.30107358]
[1764814303093,1e-08,144.79,144.77,8.80994492]
[1764814303293,1e-08,144.79,144.78,19.01422395]
[1764814303591,0.71,144.87,144.83,2.56427903]
[1764814303777,0.71,144.87,144.83,10.20427903]
[1764814304187,3.27427903,144.87,144.83,7.64]
[1764814304699,0.71,144.86,144.83,14.54447723]
[1764814305981,0.71,144.86,144.83,6.90447723]
[1764814307706,0.71,144.86,144.83,9.46875626]
[1764814309310,5.7118192,144.95,144.85,2.56427903]
[1764814309516,0.71,144.9,144.85,6.90339192]
[1764814309685,7.61147631,144.9,144.85,17.10767095]
[1764814309886,10.17575534,144.9,144.85,7.64]
[1764814310119,0.71,144.89,144.85,10.20427903]
[1764814310292,0.71,144.89,144.85,17.10778046]
[1764814310720,0.71,144.89,144.87,2.56427903]
[1764814311391,0.71,144.91,144.89,6.90178756]
[1764814311985,0.71,144.91,144.89,9.46606659]
[1764814312602,0.71,144.91,144.88,17.1063734]
[1764814313210,0.1,144.92,144.89,2.56427903]
[1764814313419,0.81,144.92,144.88,14.54209437]
[1764814313588,0.81,144.92,144.89,2.56427903]
[1764814313787,3.37427903,144.92,144.88,14.54209437]
[1764814314015,0.81,144.92,144.88,17.1063734]
[1764814314214,0.71,144.91,144.88,14.54209437]
[1764814314386,0.71,144.91,144.88,17.1063734]
[1764814314592,0.71,144.91,144.89,2.56427903]
[1764814315401,0.71,144.91,144.88,17.1063734]
[1764814315918,0.71,144.91,144.88,7.64]
[1764814316611,0.71,144.91,144.88,14.54222877]
[1764814317693,10.17529553,144.91,144.88,7.64]
[1764814318123,0.71,144.9,144.87,9.46699246]
[1764814318624,0.71,144.91,144.88,6.90224435]
[1764814318826,0.71,144.91,144.88,9.46652338]
[1764814319488,0.1,144.92,144.88,9.46652338]
[1764814319686,0.81,144.92,144.89,2.56427903]
[1764814319892,0.81,144.92,144.88,7.59224435]
[1764814320106,0.81,144.92,144.88,10.15652338]
[1764814320708,3.37427903,144.92,144.88,6.90224435]
[1764814320906,10.27483011,144.92,144.87,9.46686582]
[1764814321090,0.71,144.91,144.87,9.46686582]
[1764814321296,0.71,144.91,144.87,10.15686582]
[1764814321513,0.71,144.91,144.87,9.46686582]
[1764814322294,0.1,144.92,144.89,2.56427903]
[1764814322619,0.81,144.92,144.89,2.56427903]
[1764814323626,0.81,144.92,144.89,9.46572574]
[1764814324622,0.81,144.92,144.89,6.90144671]
[1764814324854,0.81,144.92,144.89,9.46572574]
[1764814325015,7.71038733,144.92,144.88,10.15651422]
[1764814325202,10.27466636,144.92,144.88,6.90223519]
[1764814325396,7.00038733,144.92,144.88,9.46651422]
[1764814325596,0.71,144.91,144.88,9.46651422]
[1764814325816,0.71,144.91,144.88,6.90223519]
[1764814326119,0.71,144.91,144.85,10.20427903]
[1764814326120,3.27427903,144.91,144.85,10.20427903]
[1764814326314,2.56427903,144.9,144.85,10.20427903]
[1764814326519,3.27427903,144.9,144.85,10.20427903]
[1764814326697,7.61178756,144.89,144.85,17.10795114]
[1764814326897,7.61178756,144.89,144.85,17.79795114]
[1764814327192,0.71,144.89,144.85,17.79795114]
[1764814327397,0.81,144.92,144.88,2.56427903]
[1764814327593,0.81,144.92,144.89,2.56427903]
[1764814328621,0.1,144.92,144.91,2.56427903]
[1764814328825,0.1,144.92,144.91,33.41397803]
[1764814329124,0.1,144.92,144.91,34.10397803]
[1764814332214,3.47176338,145.02,144.95,16.308864]
[1764814332408,0.68,145.03,144.99,2.56427903]
[1764814332606,0.68,145.03,144.98,2.56427903]
[1764814332826,3.24427903,145.03,144.98,2.56427903]
[1764814333024,2.56427903,145.02,144.97,3.25427903]
[1764814333206,3.24427903,145.02,144.97,3.25427903]
[1764814333408,3.24427903,145.02,144.95,16.308864]
[1764814333409,2.56427903,145.0,144.95,16.308864]
[1764814333603,2.56427903,144.99,144.94,10.20427903]
[1764814334020,0.68,144.98,144.94,10.20427903]
[1764814334231,10.14192461,144.98,144.94,7.64]
[1764814334733,0.68,144.97,144.94,7.64]
[1764814335829,0.68,144.97,144.94,14.53932973]
[1764814336031,0.68,144.97,144.94,7.64]
[1764814336918,7.57803048,144.97,144.92,7.64]
[1764814337120,7.57803048,144.97,144.92,14.54033197]
[1764814337318,3.24427903,144.96,144.92,7.64]
[1764814337717,0.68,144.95,144.92,7.64]
[1764814337918,7.57417442,145.05,144.95,8.80994492]
[1764814338117,0.68,145.04,145.01,2.56427903]
[1764814338430,0.68,145.04,144.99,7.64]
[1764814338620,3.24427903,145.04,144.98,18.87314303]
[1764814338815,3.24427903,145.04,144.99,2.56427903]
[1764814339018,3.24427903,145.03,144.98,23.948864]
[1764814339222,3.24427903,145.03,144.98,7.64]
[1764814339223,2.56427903,145.02,144.98,7.64]
[1764814339418,0.68,145.02,144.98,7.64]
[1764814339630,0.68,145.02,144.98,10.89427903]
[1764814339934,0.68,145.02,144.99,6.89702738]
[1764814340823,0.68,145.02,144.98,17.10170857]
[1764814341333,10.1400899,145.02,144.98,7.64]
[1764814341813,0.68,145.01,144.98,7.64]
[1764814342922,0.68,145.01,144.97,9.46216744]
[1764814343243,0.68,145.03,144.99,2.56427903]
[1764814343608,0.68,145.04,145.0,8.33]
[1764814343815,3.24427903,145.03,144.99,7.64]
[1764814344015,2.56427903,145.02,144.97,9.46224885]
[1764814344316,3.24427903,145.02,144.97,9.46224885]
[1764814344624,0.68,145.01,144.97,6.89796982]
[1764814344825,0.68,145.01,144.97,9.46224885]
[1764814345041,0.68,145.01,144.97,6.89796982]
[1764814345244,3.24427903,145.01,144.97,6.89796982]
[1764814345539,0.68,145.01,144.97,9.46224885]
[1764814346424,0.68,145.01,144.97,6.89796982]
[1764814346741,10.14043584,145.01,144.96,14.53836911]
[1764814347047,2.56427903,144.97,144.93,6.89979926]
[1764814347556,2.56427903,144.95,144.9,3.25427903]
[1764814347849,2.56427903,144.94,144.9,8.33]
[1764814348219,3.24427903,144.94,144.9,7.64]
[1764814348545,3.24427903,144.93,144.88,20.50963234]
[1764814348738,2.56427903,144.93,144.89,14.54167707]
[1764814349040,10.14390609,144.94,144.89,17.7959561]
[1764814349548,2.56427903,144.95,144.9,3.25427903]
[1764814349740,3.24427903,144.95,144.9,3.25427903]
[1764814350252,0.68,144.94,144.9,3.25427903]
[1764814350659,2.56427903,144.99,144.94,16.308864]
[1764814350947,10.14166954,144.99,144.94,33.41248695]
[1764814351163,16.308864,145.03,144.94,33.41248695]
[1764814351164,2.56427903,145.0,144.95,3.25427903]
[1764814351317,3.24427903,145.0,144.95,2.56427903]
[1764814351519,0.68,145.0,144.96,3.25427903]
[1764814352129,0.68,145.0,144.97,6.89797889]
[1764814353450,30.05750745,145.01,144.97,7.58797889]
[1764814353451,6.85248837,145.01,144.97,7.58797889]
[1764814353657,7.53248837,145.02,144.97,14.44046726]
[1764814353945,7.53248837,145.02,144.97,22.08046726]
[1764814354130,6.85248837,145.0,144.97,7.64]
[1764814354330,6.85248837,145.0,144.96,6.89836488]
[1764814354537,7.53248837,145.0,144.96,6.89836488]
[1764814356024,7.53248837,144.99,144.94,37.70069102]
[1764814356224,7.53248837,144.99,144.95,6.8989284]
[1764814356225,0.68,144.99,144.95,6.8989284]
[1764814356439,0.68,144.99,144.95,13.75141677]
[1764814356841,7.53248837,144.99,144.94,31.53811777]
[1764814357024,7.53248837,144.99,144.94,38.39060614]
[1764814357237,0.68,144.98,144.94,38.39060614]
[1764814357547,7.53248837,144.98,144.93,13.75232017]
[1764814357848,14.4304084,144.98,144.93,13.75232017]
[1764814358050,6.85248837,144.99,144.94,7.54248837]
[1764814358356,7.53248837,145.0,144.95,6.85248837]
[1764814358726,0.68,144.99,144.95,6.85248837]
[1764814359430,0.68,144.99,144.95,13.75110434]
[1764814359932,0.68,144.99,144.95,6.89861597]
[1764814360452,13.74917834,145.0,144.96,0.7]
[1764814360752,0.69,144.99,144.95,14.45110434]
[1764814361045,14.43917834,145.0,144.96,0.7]
[1764814361252,7.54248837,145.0,144.96,0.7]
[1764814361450,7.54248837,145.0,144.95,21.39110434]
[1764814361451,6.8975031,144.98,144.95,7.64]
[1764814362154,7.54248837,144.97,144.92,15.19248837]
[1764814362858,0.68,144.96,144.92,15.19248837]
[1764814363055,0.68,144.96,144.92,14.49248837]
[1764814363228,14.43120409,144.96,144.91,14.45322109]
[1764814363430,6.85248837,144.95,144.91,6.90073272]
[1764814363648,7.53248837,144.95,144.91,6.90073272]
[1764814363853,6.85248837,144.93,144.88,6.85248837]
[1764814364157,6.85248837,144.93,144.88,7.55248837]
[1764814364329,10.61639597,144.93,144.88,11.31639597]
[1764814364528,0.68,144.92,144.88,11.31639597]
[1764814365442,0.68,144.92,144.88,18.21856211]
[1764814365644,17.51659543,144.93,144.88,17.51856211]
[1764814365950,6.89893066,144.95,144.9,10.61639597]
[1764814366162,10.61639597,144.94,144.89,11.31639597]
[1764814366341,11.29639597,144.94,144.89,11.31639597]
[1764814366542,0.68,144.93,144.89,11.31639597]
[1764814366745,11.29639597,144.93,144.88,17.51856211]
[1764814366948,11.29639597,144.93,144.88,18.21856211]
[1764814367665,18.19643474,144.93,144.88,18.21856211]
[1764814368363,0.68,144.92,144.88,6.90216614]
[1764814368662,6.89893066,144.95,144.9,10.61639597]
[1764814368837,0.68,144.94,144.9,0.7]
[1764814369042,10.61639597,144.93,144.88,7.60216614]
[1764814369444,0.68,144.93,144.89,0.7]
[1764814369648,0.68,144.93,144.89,7.60156004]
[1764814369841,11.29639597,144.95,144.9,10.61639597]
[1764814370043,18.19546057,144.95,144.9,18.95639597]
[1764814370242,7.5790646,144.95,144.91,0.7]
[1764814370853,6.8990646,144.95,144.91,0.7]
[1764814371170,10.61639597,144.96,144.91,18.21713304]
[1764814371669,10.61639597,144.97,144.92,11.31639597]
[1764814371870,6.897637,144.98,144.92,11.31639597]
[1764814372166,10.61639597,144.99,144.94,10.61639597]
[1764814372552,10.61639597,144.99,144.95,0.7]
[1764814372755,10.61639597,144.99,144.94,11.31639597]
[1764814372957,10.61639597,144.99,144.95,0.7]
[1764814373169,17.51346484,144.99,144.95,0.7]
[1764814373368,18.25639597,145.02,144.97,10.61639597]
[1764814373567,10.61639597,145.01,144.97,0.7]
[1764814373754,10.93639597,145.01,144.97,0.7]
[1764814374484,11.2135081,145.01,144.97,0.7]
[1764814375594,3.99728557,145.0,144.97,0.7]
[1764814376075,3.99728557,145.0,144.95,6.89886711]
[1764814376266,4.31728557,144.99,144.95,7.59886711]
[1764814376646,3.99728557,144.99,144.95,7.59886711]
[1764814377074,6.89722755,144.99,144.95,7.59886711]
[1764814377263,10.89451312,144.99,144.95,7.59886711]
[1764814377974,11.21451312,144.99,144.95,7.59886711]
[1764814378174,11.21451312,144.99,144.95,0.7]
[1764814379247,10.89451312,144.99,144.95,7.59877546]
[1764814379650,7.21722755,144.99,144.95,11.59606103]
[1764814379850,6.89722755,144.99,144.95,11.59606103]
[1764814380280,26.37013525,145.01,144.96,0.7]
[1764814380281,3.99728557,145.01,144.96,0.7]
[1764814380472,3.99728557,145.02,144.97,3.99728557]
[1764814380876,4.31728557,145.02,144.98,0.7]
[1764814381368,6.89616592,145.01,144.98,0.7]
[1764814381573,6.89616592,145.01,144.96,0.7]
[1764814381574,3.99728557,145.0,144.96,0.7]
[1764814381958,6.89616592,145.01,144.96,7.59830099]
[1764814382155,3.99728557,145.0,144.96,7.59830099]
[1764814382385,6.89616592,145.01,144.97,0.7]
[1764814382560,27.94614957,145.03,144.98,10.89469864]
[1764814382761,3.99728557,145.02,144.97,11.59511778]
[1764814383071,3.99728557,145.02,144.98,0.7]
[1764814383481,6.89607613,145.01,144.98,0.7]
[1764814383776,6.89607613,145.01,144.97,14.53783221]
[1764814383980,6.89607613,145.01,144.98,0.7]
[1764814385760,10.8933617,145.01,144.97,7.64]
[1764814386070,0.32,145.0,144.97,7.64]
[1764814386384,4.31728557,145.0,144.97,7.64]
[1764814386585,3.99728557,144.99,144.95,0.7]
[1764814386958,3.99728557,144.99,144.94,7.64]
[1764814387165,24.13626646,145.01,144.94,7.64]
[1764814387166,0.32,144.98,144.94,8.34]
[1764814387372,4.31728557,144.98,144.94,8.34]
[1764814387860,10.89520858,144.98,144.94,8.34]
[1764814388264,6.89792301,144.98,144.94,14.5391528]
[1764814388479,10.89446299,144.99,144.95,0.7]
[1764814388780,3.99728557,144.98,144.95,0.7]
[1764814389282,10.89446299,144.99,144.95,0.7]
[1764814389484,6.89717742,144.99,144.95,0.7]
[1764814389786,10.89446299,144.99,144.95,0.7]
[1764814391187,10.89446299,144.99,144.95,7.59880768]
[1764814391386,6.89717742,144.99,144.95,7.59880768]
[1764814391582,3.99728557,144.99,144.96,0.7]
[1764814393187,10.89383729,145.0,144.96,0.7]
[1764814393985,7.64,145.02,144.96,7.5983793]
[1764814394290,16.628864,145.03,144.96,7.5983793]
[1764814394291,10.89250562,145.03,144.98,3.99728557]
[1764814394470,3.99728557,145.01,144.97,8.31]
[1764814394670,3.99728557,145.0,144.97,0.67]
[1764814395077,3.99728557,144.99,144.95,14.53874933]
[1764814395584,3.99728557,144.99,144.96,0.67]
[1764814395891,10.89434949,144.99,144.96,0.67]
[1764814396465,10.89434949,144.99,144.95,15.20874933]
[1764814396687,10.89434949,144.99,144.96,0.67]
[1764814397477,6.89706392,144.99,144.96,0.67]
[1764814397678,10.89434949,144.99,144.96,0.67]
[1764814398187,3.99728557,144.97,144.94,7.64]
[1764814398391,3.99728557,144.97,144.94,8.31]
[1764814399387,11.2153118,144.97,144.94,7.64]
[1764814399587,3.99728557,144.96,144.92,7.57019312]
[1764814399798,3.99728557,144.96,144.93,0.67]
[1764814400872,4.31728557,144.95,144.91,14.54079908]
[1764814401174,3.99728557,144.96,144.92,7.57030977]
[1764814401376,10.89602002,144.96,144.92,7.57030977]
[1764814401905,10.89602002,144.96,144.92,0.67]
[1764814409503,10.8964896,144.95,144.92,0.67]
[1764814410103,6.89920403,144.95,144.92,0.67]
[1764814410602,6.89920403,144.95,144.92,7.57033685]
[1764814411097,6.89920403,144.95,144.93,0.67]
[1764814411294,10.8964896,144.95,144.93,0.67]
[1764814411684,6.89920403,144.95,144.93,0.67]
[1764814412418,6.89863361,144.96,144.93,0.67]
[1764814415604,10.89591918,144.96,144.93,0.67]
[1764814415779,6.89863361,144.96,144.93,0.67]
[1764814419500,10.89591918,145.01,144.94,11.63728557]
[1764814419699,16.308864,145.0,144.95,3.99728557]
[1764814420005,6.89607613,145.01,144.95,0.69]
[1764814420302,6.89607613,145.01,144.96,0.69]
[1764814420605,6.89607613,145.01,144.91,16.308864]
[1764814420606,3.99728557,144.97,144.92,6.90033894]
[1764814420799,6.89845474,144.96,144.93,0.69]
[1764814421279,3.99728557,144.97,144.93,11.58710762]
[1764814421280,6.89810714,144.97,144.93,11.58710762]
[1764814421685,6.89810714,144.97,144.94,0.69]
[1764814422307,7.64,144.99,144.95,3.99728557]
[1764814422515,16.308864,145.01,144.96,3.99728557]
[1764814422682,6.89667568,145.0,144.96,10.89555577]
[1764814422887,6.89667568,145.0,144.97,0.66]
[1764814424004,6.89618563,145.01,144.97,7.55791659]
[1764814424517,6.89618563,145.01,144.98,0.66]
[1764814426893,9.45401065,145.01,144.98,0.66]
[1764814427399,2.55782502,145.0,144.95,9.45638622]
[1764814427595,2.55782502,144.99,144.94,3.21782502]
[1764814427814,2.55782502,144.99,144.95,0.66]
[1764814428822,2.87782502,144.99,144.95,0.66]
[1764814429127,2.55782502,144.98,144.95,0.66]
[1764814429508,6.89797889,144.97,144.95,0.66]
[1764814429944,6.89797889,144.97,144.93,8.3]
[1764814430220,6.89797889,144.97,144.93,7.64]
[1764814430221,9.45580391,144.97,144.93,7.64]
[1764814430395,9.45580391,144.97,144.93,8.3]
[1764814430594,2.55782502,144.96,144.93,0.66]
[1764814431308,26.70075114,144.97,144.93,0.66]
[1764814431508,27.02075114,144.97,144.93,0.66]
[1764814432599,34.66075114,144.97,144.93,0.66]
[1764814435114,34.34075114,144.97,144.93,0.66]
[1764814435313,34.66075114,144.97,144.93,0.66]
[1764814435504,14.53797889,144.97,144.93,0.66]
[1764814436124,14.53797889,144.97,144.93,7.55970482]
[1764814436330,14.53797889,144.97,144.94,0.66]
[1764814436915,7.64,144.99,144.94,0.66]
[1764814437110,10.19782502,144.99,144.94,0.66]
[1764814437326,17.09504097,144.99,144.94,7.55932294]
[1764814437632,9.45504097,144.99,144.95,0.66]
[1764814440728,2.55782502,144.97,144.93,0.66]
[1764814441127,9.12994492,144.98,144.93,0.66]
[1764814441326,2.55782502,144.98,144.93,0.66]
[1764814441515,9.45504097,144.99,144.94,6.89924555]
[1764814441717,9.45504097,144.99,144.95,0.66]
[1764814442228,6.89721595,144.99,144.95,0.66]
[1764814442437,9.45504097,144.99,144.95,0.66]
[1764814443432,26.70350721,145.04,144.98,2.55782502]
[1764814443641,6.89480095,145.04,145.0,2.55782502]
[1764814443935,9.45262597,145.04,145.01,0.66]
[1764814444114,6.89480095,145.04,145.01,0.66]
[1764814444314,9.45262597,145.04,145.01,0.66]
[1764814444517,15.80410739,145.06,145.01,0.66]
[1764814444715,18.36193241,145.06,145.01,3.21782502]
[1764814445135,18.36193241,145.06,145.02,0.66]
[1764814447204,15.80410739,145.06,145.02,0.66]
[1764814447440,18.36193241,145.06,145.02,0.66]
[1764814447628,15.80410739,145.06,145.02,0.66]
[1764814448821,6.99416247,145.06,145.02,0.66]
[1764814449411,2.87782502,145.05,145.0,8.3]
[1764814449618,2.55782502,145.03,145.0,8.3]
[1764814449812,2.55782502,145.04,145.0,8.3]
[1764814450013,2.55782502,145.03,145.0,7.64]
[1764814450217,2.55782502,145.03,145.0,0.66]
[1764814451024,6.8956006,145.02,145.0,0.66]
[1764814452515,9.77342562,145.02,144.97,15.18784968]
[1764814452835,9.45342562,145.02,144.98,0.67]
[1764814453137,6.8956006,145.02,144.98,0.67]
[1764814456032,16.52994492,145.06,144.98,0.67]
[1764814456033,41.26321247,145.06,144.99,2.55782502]
[1764814456239,2.55782502,145.05,144.99,2.55782502]
[1764814456443,2.55782502,145.05,145.0,0.67]
[1764814457219,6.89417442,145.05,145.0,10.12420152]
[1764814457419,9.45199944,145.05,145.0,10.12420152]
[1764814457745,9.45199944,145.05,145.01,0.67]
[1764814459219,6.89417442,145.05,145.01,7.56595765]
[1764814459427,9.45199944,145.05,145.01,7.56595765]
[1764814459733,9.45199944,145.05,145.02,0.67]
[1764814459960,2.55782502,145.04,145.02,0.67]
[1764814460127,2.55782502,145.03,145.0,0.67]
[1764814460529,9.12994492,145.04,145.0,0.67]
[1764814460735,2.55782502,145.03,145.0,0.67]
[1764814461124,6.8956006,145.02,145.0,0.67]
[1764814461849,6.89530093,145.03,145.0,0.67]
[1764814462754,24.13311379,145.03,144.99,0.67]
[1764814462932,6.89479019,145.04,145.0,7.56647819]
[1764814463451,6.89479019,145.04,145.01,0.67]
[1764814463926,9.45209993,145.05,145.01,0.67]
[1764814465126,2.55782502,145.05,145.01,7.56574618]
[1764814465649,2.55782502,145.04,145.02,0.67]
[1764814466547,2.55782502,145.05,145.02,0.67]
[1764814466848,6.89464975,145.04,145.02,0.67]
[1764814468053,6.99374953,145.06,145.03,7.62]
[1764814468251,0.1,145.06,145.04,2.55782502]
[1764814468455,0.1,145.06,145.04,0.67]
[1764814468627,0.1,145.06,145.05,0.67]
[1764814469366,0.1,145.06,145.05,7.56417442]
[1764814470226,0.1,145.06,145.05,10.12199944]
[1764814477759,0.1,145.06,145.05,18.93194436]
[1764814481183,0.1,145.06,145.05,17.74199944]
[1764814485562,0.1,145.06,145.05,15.18417442]
[1764814485878,0.1,145.06,145.05,17.74199944]
[1764814486064,0.1,145.06,145.05,15.18417442]
[1764814486365,0.1,145.06,145.05,15.22417442]
[1764814486950,0.1,145.06,145.05,17.78199944]
[1764814488352,0.1,145.06,145.05,19.21479798]
[1764814490748,0.1,145.06,145.05,11.59479798]
[1764814491053,0.1,145.06,145.05,19.21479798]
[1764814492952,0.1,145.06,145.02,0.71]
[1764814493157,0.1,145.06,145.02,19.21609823]
[1764814493362,0.1,145.06,145.03,4.70062356]
[1764814493877,0.1,145.06,145.04,0.71]
[1764814494271,0.1,145.06,145.04,3.99062356]
[1764814494447,0.1,145.06,145.05,7.62]